fUSD/lending_fUSD_20241023
["ID","MTS","AMOUNT","RATE_DAILY","PERIOD"]
[340696361,1729691469272,-500.0,0.00050995,120]
[340696362,1729691469281,-1581.21,0.00050995,120]
[340696363,1729691469291,-865.01,0.00050995,120]
[340696364,1729691469300,-500.0,0.00050995,120]
[340696365,1729691469310,-500.0,0.00050995,120]
[340696366,1729691469319,-500.0,0.00050995,120]
[340696367,1729691469329,-500.0,0.00050995,120]
[340696368,1729691469338,-1176.97,0.00050995,120]
[340696369,1729691469348,-500.0,0.00050995,120]
[340696370,1729691469357,-581.37,0.00050995,120]
[340696371,1729691469367,-500.0,0.00050995,120]
[340696372,1729691469376,-500.0,0.00050995,120]
[340696373,1729691469386,-500.0,0.00050995,120]
[340696374,1729691469396,-616.0798018,0.00050995,120]
[340696375,1729691469405,-1266.18,0.00050995,120]
[340696376,1729691469414,-500.0,0.00050995,120]
[340696377,1729691469424,-614.39,0.00050995,120]
[340696378,1729691469434,-500.0,0.00050995,120]
[340696379,1729691469443,-500.0,0.00050995,120]
[340696380,1729691469453,-500.0,0.00050995,120]
[340696381,1729691469462,-3561.46,0.00050995,120]
[340696382,1729691469472,-1083.12,0.00050995,120]
[340696383,1729691469481,-534.8483403,0.00050995,120]
[340696384,1729691469492,-500.0,0.00050995,120]
[340696385,1729691469503,-3814.54,0.00050995,120]
[340696386,1729691469512,-573.02,0.00050995,120]
[340696387,1729691469522,-175.0,0.00051,120]
[340696388,1729691469531,-1500.0,0.00051003,14]
[340696389,1729691469540,-150.0,0.00051076,7]
[340696390,1729691469549,-733.38,0.00051085,120]
[340696391,1729691469558,-500.0,0.00051085,120]
[340696392,1729691469568,-500.0,0.00051085,120]
[340696393,1729691469577,-708.96,0.00051085,120]
[340696394,1729691469588,-500.0,0.00051085,120]
[340696395,1729691469598,-500.0,0.00051085,120]
[340696396,1729691469608,-500.0,0.00051085,120]
[340696397,1729691469617,-776.39,0.00051085,120]
[340696398,1729691469626,-1558.2,0.00051085,120]
[340696399,1729691469636,-503.91,0.00051085,120]
[340696400,1729691469646,-500.0,0.00051085,120]
[340696401,1729691469655,-586.63,0.00051085,120]
[340696402,1729691469665,-500.0,0.00051085,120]
[340696403,1729691469674,-500.0,0.00051085,120]
[340696404,1729691469683,-500.0,0.00051085,120]
[340696405,1729691469692,-500.0,0.00051085,120]
[340696406,1729691469702,-500.0,0.00051085,120]
[340696407,1729691469711,-500.0,0.00051085,120]
[340696408,1729691469720,-500.0,0.00051085,120]
[340696409,1729691469730,-613.12311854,0.00051085,120]
[340696410,1729691469740,-500.0,0.00051085,120]
[340696411,1729691469750,-500.0,0.00051085,120]
[340696412,1729691469759,-500.0,0.00051085,120]
[340696413,1729691469770,-500.0,0.00051085,120]
[340696414,1729691469779,-500.0,0.00051085,120]
[340696415,1729691469790,-500.0,0.00051085,120]
[340696416,1729691469799,-500.0,0.00051085,120]
[340696417,1729691469808,-500.0,0.00051085,120]
[340696418,1729691469819,-500.0,0.00051085,120]
[340696419,1729691469830,-500.0,0.00051085,120]
[340696420,1729691469841,-500.0,0.00051085,120]
[340696421,1729691469850,-500.0,0.00051085,120]
[340696422,1729691469860,-500.0,0.00051085,120]
[340696423,1729691469870,-657.97,0.00051085,120]
[340696424,1729691469879,-500.0,0.00051085,120]
[340696425,1729691469889,-2582.81,0.00051085,120]
[340696426,1729691469898,-500.0,0.00051085,120]
[340696427,1729691469907,-500.0,0.00051085,120]
[340696428,1729691469917,-500.0,0.00051085,120]
[340696429,1729691469926,-500.0,0.00051085,120]
[340696430,1729691469935,-500.0,0.00051085,120]
[340696431,1729691469945,-500.0,0.00051085,120]
[340696432,1729691469954,-574.76,0.00051085,120]
[340696433,1729691469963,-500.0,0.00051085,120]
[340696434,1729691469973,-500.0,0.00051085,120]
[340696435,1729691469982,-300.0,0.00051085,120]
[340696436,1729691469991,-285.43420827,0.00051085,120]
[340696437,1729691470002,-500.0,0.00051085,120]
[340696438,1729691470011,-500.0,0.00051085,120]
[340696439,1729691470020,-500.0,0.00051085,120]
[340696440,1729691470030,-500.0,0.00051085,120]
[340696441,1729691470039,-500.0,0.00051085,120]
[340696442,1729691470048,-500.0,0.00051085,120]
[340696443,1729691470057,-2258.71,0.00051085,120]
[340696444,1729691470067,-500.0,0.00051085,120]
[340696445,1729691470076,-529.68,0.00051085,120]
[340696446,1729691470086,-500.0,0.00051085,120]
[340696447,1729691470095,-500.0,0.00051085,120]
[340696448,1729691470104,-519.32480496,0.00051085,120]
[340696449,1729691470113,-500.0,0.00051085,120]
[340696450,1729691470123,-500.0,0.00051085,120]
[340696451,1729691470132,-500.0,0.00051085,120]
[340696452,1729691470141,-500.0,0.00051085,90]
[340696453,1729691470150,-1602.66,0.00051085,120]
[340696454,1729691470159,-500.0,0.00051085,120]
[340696455,1729691470169,-500.0,0.00051085,120]
[340696456,1729691470178,-500.0,0.00051085,120]
[340696457,1729691470187,-500.0,0.00051085,120]
[340696458,1729691470196,-500.0,0.00051085,120]
[340696459,1729691470205,-500.0,0.00051085,120]
[340696460,1729691470214,-500.0,0.00051085,120]
[340696461,1729691470223,-511.92,0.00051085,120]
[340696462,1729691470232,-500.0,0.00051085,120]
[340696463,1729691470241,-500.0,0.00051085,120]
[340696464,1729691470253,-910.87,0.00051085,120]
[340696465,1729691470262,-500.0,0.00051085,120]
[340696466,1729691470271,-500.0,0.00051085,120]
[340696467,1729691470280,-2357.8,0.00051085,120]
[340696468,1729691470289,-500.0,0.00051085,120]
[340696469,1729691470299,-980.54,0.00051085,120]
[340696470,1729691470308,-500.0,0.00051085,120]
[340696471,1729691470318,-500.0,0.00051085,120]
[340696472,1729691470328,-440.53808593,0.00051085,120]
[340696473,1729691470337,-500.0,0.00051085,120]
[340696474,1729691470346,-577.99,0.00051085,120]
[340696475,1729691470355,-500.0,0.00051085,120]
[340696476,1729691470364,-1082.92,0.00051085,120]
[340696477,1729691470374,-500.0,0.00051085,120]
[340696478,1729691470383,-190.58245171,0.00051085,120]
[340696479,1729691470392,-500.0,0.00051085,120]
[340696480,1729691470401,-500.0,0.00051085,120]
[340696481,1729691470411,-500.0,0.00051085,120]
[340696482,1729691470420,-500.0,0.00051085,120]
[340696483,1729691470429,-500.0,0.00051085,120]
[340696484,1729691470438,-500.0,0.00051085,120]
[340696485,1729691470447,-500.0,0.00051085,120]
[340696486,1729691470456,-500.0,0.00051085,120]
[340696487,1729691470465,-500.0,0.00051085,120]
[340696488,1729691470475,-500.0,0.00051085,120]
[340696489,1729691470484,-500.0,0.00051085,120]
[340696490,1729691470493,-500.0,0.00051085,120]
[340696491,1729691470505,-732.32,0.00051085,120]
[340696492,1729691470514,-695.49,0.00051085,120]
[340696493,1729691470523,-500.0,0.00051085,120]
[340696494,1729691470532,-500.0,0.00051085,120]
[340696495,1729691470541,-515.16041025,0.00051085,120]
[340696496,1729691470550,-556.77,0.00051085,120]
[340696497,1729691470560,-855.28,0.00051085,120]
[340696498,1729691470569,-522.91900336,0.00051085,120]
[340696499,1729691470578,-500.0,0.00051085,120]
[340696500,1729691470591,-500.0,0.00051085,120]
[340696501,1729691470600,-956.59,0.00051085,120]
[340696502,1729691470609,-587.57,0.00051085,120]
[340696503,1729691470618,-500.0,0.00051085,120]
[340696504,1729691470628,-279.21612131,0.00051085,120]
[340696505,1729691470638,-609.38,0.00051085,120]
[340696506,1729691470647,-500.0,0.00051085,120]
[340696507,1729691470656,-500.0,0.00051085,120]
[340696508,1729691470665,-500.0,0.00051085,120]
[340696509,1729691470675,-500.0,0.00051085,120]
[340696510,1729691470684,-523.8,0.00051085,120]
[340696511,1729691470693,-511.89,0.00051085,120]
[340696512,1729691470702,-500.0,0.00051085,120]
[340696513,1729691470711,-500.0,0.00051085,120]
[340696514,1729691470720,-527.61,0.00051085,120]
[340696515,1729691470730,-500.0,0.00051085,120]
[340696516,1729691470739,-500.0,0.00051085,120]
[340696517,1729691470748,-500.0,0.00051085,120]
[340696518,1729691470757,-500.0,0.00051085,120]
[340696519,1729691470767,-500.0,0.00051085,120]
[340696520,1729691470935,-500.0,0.00051085,120]
[340696521,1729691470945,-1263.77,0.00051085,120]
[340696522,1729691470954,-514.25727834,0.00051085,120]
[340696523,1729691470964,-188.74083709,0.00051085,120]
[340696524,1729691470973,-500.0,0.00051085,120]
[340696525,1729691470982,-500.0,0.00051085,120]
[340696526,1729691470991,-558.93190158,0.00051085,120]
[340696527,1729691471000,-500.0,0.00051085,120]
[340696528,1729691471010,-500.0,0.00051085,120]
[340696529,1729691471019,-500.0,0.00051085,120]
[340696530,1729691471028,-305.24302112,0.00051085,120]
[340696531,1729691471037,-500.0,0.00051085,120]
[340696532,1729691471046,-500.0,0.00051085,120]
[340696533,1729691471056,-500.0,0.00051085,120]
[340696534,1729691471065,-500.0,0.00051085,120]
[340696535,1729691471074,-500.0,0.00051085,120]
[340696536,1729691471083,-500.0,0.00051085,120]
[340696537,1729691471092,-500.0,0.00051085,120]
[340696538,1729691471101,-5503.91,0.00051085,120]
[340696539,1729691471110,-495.2928091,0.00051085,120]
[340696540,1729691471120,-500.0,0.00051085,120]
[340696541,1729691471129,-500.0,0.00051085,120]
[340696542,1729691471138,-538.68827878,0.00051085,120]
[340696543,1729691471147,-500.0,0.00051085,120]
[340696544,1729691471156,-500.0,0.00051085,120]
[340696545,1729691471166,-500.0,0.00051085,120]
[340696546,1729691471175,-581.81857627,0.00051085,120]
[340696547,1729691471184,-500.0,0.00051085,120]
[340696548,1729691471194,-500.0,0.00051085,120]
[340696549,1729691471204,-827.35,0.00051085,120]
[340696550,1729691471213,-500.0,0.00051085,120]
[340696551,1729691471222,-500.0,0.00051085,120]
[340696552,1729691471231,-500.0,0.00051085,120]
[340696553,1729691471241,-604.33,0.00051085,120]
[340696554,1729691471251,-500.0,0.00051085,120]
[340696555,1729691471261,-500.0,0.00051085,120]
[340696556,1729691471271,-500.0,0.00051085,120]
[340696557,1729691471280,-500.0,0.00051085,120]
[340696558,1729691471289,-500.0,0.00051085,120]
[340696559,1729691471299,-500.0,0.00051085,120]
[340696560,1729691471308,-500.0,0.00051085,120]
[340696561,1729691471317,-500.0,0.00051085,120]
[340696562,1729691471326,-500.0,0.00051085,120]
[340696563,1729691471335,-500.0,0.00051085,120]
[340696564,1729691471345,-500.0,0.00051085,120]
[340696565,1729691471354,-538.75,0.00051085,120]
[340696566,1729691471363,-1134.89,0.00051085,120]
[340696567,1729691471372,-1213.11,0.00051085,120]
[340696568,1729691471382,-512.86,0.00051085,120]
[340696569,1729691471391,-521.83,0.00051085,120]
[340696570,1729691471400,-2147.87,0.00051085,120]
[340696571,1729691471409,-1080.65,0.00051085,120]
[340696572,1729691471418,-500.0,0.00051085,120]
[340696573,1729691471427,-500.0,0.00051085,120]
[340696574,1729691471436,-500.0,0.00051085,120]
[340696575,1729691471446,-556.45,0.00051085,120]
[340696576,1729691471455,-500.0,0.00051085,120]
[340696577,1729691471464,-588.65660978,0.00051085,120]
[340696578,1729691471473,-3205.68,0.00051085,120]
[340696579,1729691471482,-500.0,0.00051085,120]
[340696580,1729691471491,-500.0,0.00051085,120]
[340696581,1729691471502,-939.73,0.00051085,120]
[340696582,1729691471511,-541.4,0.00051085,120]
[340696583,1729691471520,-597.57,0.00051085,120]
[340696584,1729691471529,-500.0,0.00051085,120]
[340696585,1729691471539,-2697.86,0.00051085,120]
[340696586,1729691471548,-500.0,0.00051085,120]
[340696587,1729691471557,-500.0,0.00051085,120]
[340696588,1729691471566,-500.0,0.00051085,120]
[340696589,1729691471576,-500.0,0.00051085,120]
[340696590,1729691471586,-851.87,0.00051085,120]
[340696591,1729691471597,-500.0,0.00051085,14]
[340696592,1729691471607,-1936.62,0.00051085,120]
[340696593,1729691471616,-500.0,0.00051085,120]
[340696594,1729691471625,-500.0,0.00051085,120]
[340696595,1729691471636,-500.0,0.00051085,120]
[340696596,1729691471646,-1108.74,0.00051085,120]
[340696597,1729691471656,-500.0,0.00051085,120]
[340696598,1729691471666,-662.72,0.00051085,120]
[340696599,1729691471675,-500.0,0.00051085,120]
[340696600,1729691471684,-518.98665376,0.00051085,120]
[340696601,1729691471694,-500.0,0.00051085,120]
[340696602,1729691471703,-500.0,0.00051085,120]
[340696603,1729691471712,-500.0,0.00051085,120]
[340696604,1729691471721,-500.0,0.00051085,120]
[340696605,1729691471730,-513.83,0.00051085,120]
[340696606,1729691471739,-500.0,0.00051085,120]
[340696607,1729691471748,-500.0,0.00051085,120]
[340696608,1729691471760,-500.0,0.00051085,120]
[340696609,1729691471769,-500.0,0.00051085,120]
[340696610,1729691471778,-831.37,0.00051085,120]
[340696611,1729691471787,-813.6,0.00051085,120]
[340696612,1729691471796,-517.89,0.00051085,120]
[340696613,1729691471806,-500.0,0.00051085,120]
[340696614,1729691471816,-1035.99,0.00051085,120]
[340696615,1729691471826,-592.79,0.00051085,120]
[340696616,1729691471835,-500.0,0.00051085,120]
[340696617,1729691471845,-150.0,0.00051126,7]
[340696618,1729691471854,-306.28,0.00051134,2]
[340696619,1729691471864,-150.0,0.0005115,7]
[340696620,1729691471874,-500.0,0.00051159,2]
[340696621,1729691471883,-500.0,0.00051168,120]
[340696622,1729691471893,-500.0,0.00051168,120]
[340696623,1729691471902,-500.0,0.00051168,120]
[340696624,1729691471912,-778.87,0.00051168,120]
[340696625,1729691471921,-500.0,0.00051168,120]
[340696626,1729691471930,-1806.21,0.00051168,120]
[340696627,1729691471939,-500.0,0.00051168,120]
[340696628,1729691471949,-588.12514181,0.00051168,120]
[340696629,1729691471960,-764.74,0.00051168,120]
[340696630,1729691471970,-200.0,0.00051168,120]
[340696631,1729691471981,-804.5,0.00051168,120]
[340696632,1729691471992,-400.82277385,0.00051168,120]
[340696633,1729691472004,-500.0,0.00051168,120]
[340696634,1729691472013,-670.88,0.00051168,120]
[340696635,1729691472022,-1130.12,0.00051168,120]
[340696636,1729691472032,-500.0,0.00051168,120]
[340696637,1729691472043,-500.0,0.00051168,120]
[340696638,1729691472053,-578.29,0.00051168,120]
[340696639,1729691472064,-500.0,0.00051168,120]
[340696640,1729691472074,-500.0,0.00051168,120]
[340696641,1729691472083,-1174.55,0.00051168,120]
[340696642,1729691472093,-500.0,0.00051168,120]
[340696643,1729691472102,-500.0,0.00051168,120]
[340696644,1729691472111,-1183.75,0.00051168,120]
[340696645,1729691472121,-898.47,0.00051168,120]
[340696646,1729691472132,-500.0,0.00051168,120]
[340696647,1729691472142,-500.0,0.00051168,120]
[340696648,1729691472151,-500.0,0.00051168,120]
[340696649,1729691472161,-500.0,0.00051168,120]
[340696650,1729691472170,-500.0,0.00051168,120]
[340696651,1729691472179,-546.42,0.00051168,120]
[340696652,1729691472188,-735.75,0.00051168,120]
[340696653,1729691472197,-893.45,0.00051168,120]
[340696654,1729691472206,-500.0,0.00051168,120]
[340696655,1729691472217,-1426.42,0.00051168,120]
[340696656,1729691472226,-500.0,0.00051168,120]
[340696657,1729691472236,-500.0,0.00051168,120]
[340696658,1729691472245,-500.0,0.00051168,120]
[340696659,1729691472256,-500.0,0.00051168,120]
[340696660,1729691472266,-500.0,0.00051168,120]
[340696661,1729691472275,-500.0,0.00051168,120]
[340696662,1729691472285,-500.0,0.00051168,120]
[340696663,1729691472294,-500.0,0.00051168,120]
[340696664,1729691472303,-500.0,0.00051168,120]
[340696665,1729691472312,-500.0,0.00051168,120]
[340696666,1729691472321,-1971.1,0.00051168,120]
[340696667,1729691472331,-629.42,0.00051168,120]
[340696668,1729691472342,-658.24,0.00051168,120]
[340696669,1729691472351,-500.0,0.00051168,120]
[340696670,1729691472360,-500.0,0.00051168,120]
[340696671,1729691472369,-1465.85,0.00051168,120]
[340696672,1729691472378,-500.0,0.00051168,120]
[340696673,1729691472387,-556.77026198,0.00051168,120]
[340696674,1729691472397,-500.0,0.00051168,120]
[340696675,1729691472406,-3529.23,0.00051168,120]
[340696676,1729691472415,-500.0,0.00051168,120]
[340696677,1729691472424,-500.0,0.00051168,120]
[340696678,1729691472433,-3378.78,0.00051168,120]
[340696679,1729691472443,-500.0,0.00051168,120]
[340696680,1729691472452,-820.43,0.00051168,120]
[340696681,1729691472461,-500.0,0.00051168,120]
[340696682,1729691472470,-500.0,0.00051168,120]
[340696683,1729691472480,-500.0,0.00051168,120]
[340696684,1729691472490,-3392.88,0.00051168,120]
[340696685,1729691472499,-2064.61,0.00051168,120]
[340696686,1729691472510,-500.0,0.00051168,120]
[340696687,1729691472519,-385.54108502,0.00051168,120]
[340696688,1729691472528,-500.0,0.00051168,120]
[340696689,1729691472538,-1522.52,0.00051168,120]
[340696690,1729691472547,-842.41,0.00051168,120]
[340696691,1729691472556,-500.0,0.00051168,120]
[340696692,1729691472565,-500.0,0.00051168,120]
[340696693,1729691472574,-508.44,0.00051168,120]
[340696694,1729691472583,-1222.32,0.00051168,120]
[340696695,1729691472592,-533.68709948,0.00051168,120]
[340696696,1729691472601,-500.0,0.00051168,120]
[340696697,1729691472611,-500.0,0.00051168,120]
[340696698,1729691472620,-500.0,0.00051168,120]
[340696699,1729691472630,-2025.07,0.00051168,120]
[340696700,1729691472639,-762.17,0.00051168,120]
[340696701,1729691472649,-500.0,0.00051168,120]
[340696702,1729691472658,-500.0,0.00051168,120]
[340696703,1729691472667,-500.0,0.00051168,120]
[340696704,1729691472676,-500.0,0.00051168,120]
[340696705,1729691472685,-500.0,0.00051168,120]
[340696706,1729691472694,-500.0,0.00051168,120]
[340696707,1729691472704,-500.0,0.00051168,120]
[340696708,1729691472713,-534.34,0.00051168,120]
[340696709,1729691472722,-8644.32,0.00051168,120]
[340696710,1729691472731,-983.41,0.00051168,120]
[340696711,1729691472740,-500.0,0.00051168,120]
[340696712,1729691472749,-568.51,0.00051168,120]
[340696713,1729691472765,-500.0,0.00051168,120]
[340696714,1729691472774,-500.0,0.00051168,120]
[340696715,1729691472784,-500.0,0.00051168,120]
[340696716,1729691472794,-500.0,0.00051168,120]
[340696717,1729691472803,-500.0,0.00051168,120]
[340696718,1729691472811,-607.97781396,0.00051168,120]
[340696719,1729691472821,-500.0,0.00051168,120]
[340696720,1729691472830,-500.0,0.00051168,120]
[340696721,1729691472839,-500.0,0.00051168,120]
[340696722,1729691472848,-606.79,0.00051178,120]
[340696723,1729691472857,-150.0,0.00051185,7]
[340696724,1729691472866,-150.0,0.00051187,7]
[340696725,1729691472875,-150.0,0.00051189,7]
[340696726,1729691472884,-415.60992635,0.00051189,28]
[340696727,1729691472893,-150.0,0.00051226,7]
[340696728,1729691472902,-500.0,0.00051231,2]
[340696729,1729691472911,-791.35,0.00051231,120]
[340696730,1729691472921,-500.0,0.00051231,120]
[340696731,1729691472930,-500.0,0.00051232,120]
[340696732,1729691472939,-500.0,0.00051232,120]
[340696733,1729691472948,-500.0,0.00051232,120]
[340696734,1729691472957,-500.0,0.00051232,120]
[340696735,1729691472966,-500.0,0.00051232,120]
[340696736,1729691472975,-543.03795938,0.00051232,120]
[340696737,1729691472984,-500.0,0.00051232,120]
[340696738,1729691472993,-500.0,0.00051232,120]
[340696739,1729691473003,-500.0,0.00051232,120]
[340696740,1729691473012,-500.0,0.00051232,120]
[340696741,1729691473021,-500.0,0.00051232,120]
[340696742,1729691473030,-500.0,0.00051232,120]
[340696743,1729691473040,-500.0,0.00051232,120]
[340696744,1729691473050,-500.0,0.00051232,120]
[340696745,1729691473061,-500.0,0.00051232,120]
[340696746,1729691473071,-1082.18,0.00051232,120]
[340696747,1729691473082,-587.93,0.00051232,120]
[340696748,1729691473091,-1594.9,0.00051232,120]
[340696749,1729691473101,-500.0,0.00051232,120]
[340696750,1729691473110,-500.0,0.00051232,120]
[340696751,1729691473119,-563.31,0.00051232,120]
[340696752,1729691473128,-848.05,0.00051232,120]
[340696753,1729691473138,-825.73,0.00051232,120]
[340696754,1729691473147,-500.0,0.00051232,120]
[340696755,1729691473156,-500.0,0.00051232,120]
[340696756,1729691473165,-500.0,0.00051232,120]
[340696757,1729691473174,-1538.1,0.00051232,120]
[340696758,1729691473183,-500.0,0.00051232,120]
[340696759,1729691473192,-500.0,0.00051232,120]
[340696760,1729691473201,-500.0,0.00051232,120]
[340696761,1729691473210,-1239.7,0.00051232,120]
[340696762,1729691473220,-500.0,0.00051232,120]
[340696763,1729691473229,-500.0,0.00051232,120]
[340696764,1729691473238,-500.0,0.00051232,120]
[340696765,1729691473248,-961.6,0.00051232,120]
[340696766,1729691473264,-2108.84,0.00051232,120]
[340696767,1729691473273,-775.73,0.00051232,120]
[340696768,1729691473283,-500.0,0.00051232,120]
[340696769,1729691473292,-500.0,0.00051232,120]
[340696770,1729691473302,-500.0,0.00051232,120]
[340696771,1729691473311,-500.0,0.00051232,120]
[340696772,1729691473320,-645.43,0.00051232,120]
[340696773,1729691473330,-555.57506667,0.00051232,120]
[340696774,1729691473339,-500.0,0.00051232,120]
[340696775,1729691473349,-500.0,0.00051232,120]
[340696776,1729691473357,-500.0,0.00051232,120]
[340696777,1729691473367,-500.0,0.00051232,120]
[340696778,1729691473376,-500.0,0.00051232,120]
[340696779,1729691473386,-500.0,0.00051232,120]
[340696780,1729691473396,-500.0,0.00051249,2]
[340696781,1729691473406,-791.35,0.00051249,120]
[340696782,1729691473416,-500.0,0.00051249,120]
[340696783,1729691473425,-250000.0,0.0005125,120]
[340696784,1729691473435,-150.0,0.00051254,7]
[340696785,1729691473445,-150.0,0.00051266,7]
[340696786,1729691473455,-500.0,0.00051268,120]
[340696787,1729691473466,-500.0,0.00051268,120]
[340696788,1729691473476,-500.0,0.00051268,120]
[340696789,1729691473485,-4332.17,0.00051268,120]
[340696790,1729691473494,-3677.17,0.00051268,120]
[340696791,1729691473505,-500.0,0.00051268,120]
[340696792,1729691473515,-1171.42,0.00051268,120]
[340696793,1729691473525,-1003.52,0.00051268,120]
[340696794,1729691473534,-500.0,0.00051268,120]
[340696795,1729691473544,-153.042613,0.00051268,120]
[340696796,1729691473554,-402.470686,0.00051268,120]
[340696797,1729691473563,-500.0,0.00051268,120]
[340696798,1729691473573,-152.467185,0.00051268,120]
[340696799,1729691473582,-500.0,0.00051268,120]
[340696800,1729691473596,-573.031736,0.00051268,120]
[340696801,1729691473752,-2953.34,0.00051268,120]
[340696802,1729691473775,-500.0,0.00051268,120]
[340696803,1729691473785,-21625.53,0.00051268,120]
[340696804,1729691473795,-1350.49,0.00051268,120]
[340696805,1729691473804,-500.0,0.00051268,120]
[340696806,1729691473814,-685.55,0.00051268,120]
[340696807,1729691473823,-1746.68,0.00051268,120]
[340696808,1729691473833,-500.0,0.00051268,120]
[340696809,1729691473843,-7984.63,0.00051268,21]
[340696810,1729691473852,-1000.0,0.00051268,120]
[340696811,1729691473862,-500.0,0.00051268,120]
[340696812,1729691473872,-1489.42,0.00051268,120]
[340696813,1729691473881,-2543.92,0.00051268,120]
[340696814,1729691473891,-2091.74,0.00051268,120]
[340696815,1729691473901,-732.66,0.00051269,120]
[340696816,1729691473910,-500.0,0.00051269,120]
[340696817,1729691473920,-731.05,0.00051269,120]
[340696818,1729691473929,-500.0,0.00051269,120]
[340696819,1729691473938,-500.0,0.00051269,120]
[340696820,1729691473948,-894.45,0.00051269,120]
[340696821,1729691473957,-420.8,0.00051269,120]
[340696822,1729691473967,-500.0,0.00051269,120]
[340696823,1729691473976,-500.0,0.00051269,120]
[340696824,1729691473985,-500.0,0.00051269,120]
[340696825,1729691473994,-500.0,0.00051269,120]
[340696826,1729691474004,-500.0,0.00051269,120]
[340696827,1729691474014,-744.01,0.00051269,120]
[340696828,1729691474023,-500.0,0.00051269,120]
[340696829,1729691474032,-500.0,0.00051269,120]
[340696830,1729691474042,-515.02,0.00051269,120]
[340696831,1729691474052,-500.0,0.00051269,120]
[340696832,1729691474061,-500.0,0.00051269,120]
[340696833,1729691474071,-500.0,0.00051269,120]
[340696834,1729691474081,-388.74807777,0.00051269,120]
[340696835,1729691474090,-637.9,0.00051269,120]
[340696836,1729691474099,-312.86709726,0.00051269,120]
[340696837,1729691474109,-500.0,0.00051269,120]
[340696838,1729691474118,-780.02,0.00051269,120]
[340696839,1729691474127,-500.0,0.00051269,120]
[340696840,1729691474136,-500.0,0.00051269,120]
[340696841,1729691474146,-500.0,0.00051269,120]
[340696842,1729691474155,-500.0,0.00051269,120]
[340696843,1729691474164,-500.0,0.00051269,120]
[340696844,1729691474174,-1426.92,0.00051269,120]
[340696845,1729691474183,-500.0,0.00051269,120]
[340696846,1729691474193,-625.59,0.00051269,120]
[340696847,1729691474202,-500.0,0.00051269,120]
[340696848,1729691474211,-500.0,0.00051269,120]
[340696849,1729691474221,-500.0,0.00051269,120]
[340696850,1729691474231,-500.0,0.00051269,120]
[340696851,1729691474241,-500.0,0.00051269,120]
[340696852,1729691474251,-500.0,0.00051269,120]
[340696853,1729691474263,-500.0,0.00051269,120]
[340696854,1729691474272,-500.0,0.00051269,120]
[340696855,1729691474282,-500.0,0.00051269,120]
[340696856,1729691474291,-319.57,0.00051269,120]
[340696857,1729691474300,-500.0,0.00051269,120]
[340696858,1729691474310,-500.0,0.00051269,120]
[340696859,1729691474320,-662.16,0.00051269,120]
[340696860,1729691474329,-518.51,0.00051269,120]